bitfinex-derivatives/quotes_ETHF0:USTF0_20260201
["timestamp","ask_amount","ask_price","bid_price","bid_amount"]
[1769919528750,43.21448473,2451.7,2450.8,3.22086251]
[1769919528946,36.53531473,2452.1,2450.8,3.22086251]
[1769919529250,37.1198592,2452.2,2451.0,3.22086251]
[1769919529450,0.4296278,2452.1,2451.0,3.22086251]
[1769919530343,36.96494253,2452.1,2451.1,10.26977582]
[1769919530542,0.02487374,2452.0,2451.0,3.22086251]
[1769919530746,0.02487374,2452.0,2451.0,13.49063833]
[1769919531145,0.02487374,2451.9,2451.0,13.49063833]
[1769919531344,36.53531473,2452.0,2451.1,3.20425804]
[1769919532055,9.14,2451.9,2451.3,3.20425804]
[1769919532454,9.14,2451.9,2450.8,3.19345158]
[1769919532654,9.14,2451.9,2450.9,13.4632274]
[1769919532855,9.14,2451.9,2451.0,3.19345158]
[1769919533153,9.14,2451.9,2451.1,13.4632274]
[1769919533357,9.14,2451.9,2451.1,3.19345158]
[1769919533553,9.14,2451.9,2451.1,13.4632274]
[1769919535358,9.14,2451.9,2451.2,3.17449349]
[1769919537360,9.14,2451.9,2451.2,13.44426931]
[1769919538066,9.14,2451.9,2451.2,3.17449349]
[1769919538358,9.14,2451.9,2451.2,13.44426931]
[1769919538764,36.53531473,2451.8,2450.8,3.1566659]
[1769919538961,36.53531473,2451.7,2450.8,13.42644172]
[1769919539153,36.53531473,2451.6,2450.8,13.42644172]
[1769919539357,36.53531473,2451.5,2450.9,3.15012314]
[1769919539553,9.233,2451.4,2450.9,3.15012314]
[1769919540163,9.233,2451.4,2450.9,2.85502016]
[1769919540662,9.233,2451.4,2450.7,0.00366245]
[1769919540865,36.53531473,2451.2,2449.2,0.20437]
[1769919541159,36.53531473,2451.1,2449.6,10.26977582]
[1769919541863,36.53842432,2451.1,2449.6,10.27470131]
[1769919542164,36.53842432,2451.1,2449.7,2.99231855]
[1769919542364,36.53842432,2451.1,2449.8,10.26977582]
[1769919542663,36.53842432,2451.1,2449.9,3.00307839]
[1769919543265,36.53842432,2451.1,2450.1,2.99263512]
[1769919543456,0.00310959,2451.1,2450.1,2.99263512]
[1769919543661,0.00310959,2451.1,2450.3,2.99263512]
[1769919544463,36.53531473,2451.5,2450.5,2.98339773]
[1769919544464,9.276,2451.5,2450.5,2.98339773]
[1769919544660,9.276,2451.5,2450.7,2.98184293]
[1769919545061,36.73947473,2451.8,2450.9,2.98184293]
[1769919545261,9.276,2451.6,2450.9,2.98184293]
[1769919545566,9.27904052,2451.6,2451.1,2.97195073]
[1769919545965,9.27904052,2451.6,2451.2,2.97195073]
[1769919547568,9.303,2451.9,2451.4,2.96216477]
[1769919548565,9.30721925,2451.9,2451.5,2.96195823]
[1769919549359,9.30721925,2451.9,2451.6,2.96195823]
[1769919549558,8.34012616,2451.9,2451.6,2.96195823]
[1769919550368,8.34012616,2451.9,2451.4,2.96652977]
[1769919550568,0.00421925,2451.9,2451.5,2.96166144]
[1769919554273,0.00421925,2451.9,2451.6,2.95857905]
[1769919554869,36.53531473,2452.0,2451.7,2.95857905]
[1769919555175,14.26437529,2452.5,2451.7,2.95857905]
[1769919555374,9.395,2452.4,2451.9,2.95857905]
[1769919555972,9.39828218,2452.4,2452.1,2.95857905]
[1769919557076,9.39828218,2452.4,2451.4,0.00457154]
[1769919557380,9.39828218,2452.4,2451.8,2.95832017]
[1769919557971,9.39828218,2452.4,2452.0,2.95832017]
[1769919560374,9.39828218,2452.4,2452.0,13.22809599]
[1769919561175,9.39828218,2452.4,2452.1,2.95785937]
[1769919563078,9.39828218,2452.4,2451.4,0.00457154]
[1769919563279,9.39828218,2452.4,2451.5,10.26977582]
[1769919564883,9.39828218,2452.4,2451.6,1.47957539]
[1769919565384,9.39828218,2452.4,2451.8,1.47957539]
[1769919565583,9.39828218,2452.4,2451.6,1.47957539]
[1769919565784,14.26965747,2452.4,2451.6,1.47957539]
[1769919567980,9.39828218,2452.4,2451.8,1.47823665]
[1769919568285,9.39828218,2452.4,2452.0,1.47823665]
[1769919568778,9.39828218,2452.4,2452.1,1.47879375]
[1769919569083,0.00328218,2452.4,2452.1,1.47879375]
[1769919569785,0.00328218,2452.4,2452.2,1.47879375]
[1769919570081,4.87137529,2452.8,2452.2,1.47879375]
[1769919570282,4.87137529,2453.0,2452.4,1.47879375]
[1769919570677,4.87137529,2453.0,2452.4,10.26977582]
[1769919570983,4.87137529,2453.0,2451.4,0.00457154]
[1769919571184,4.87137529,2452.9,2451.4,0.00457154]
[1769919572883,4.87137529,2452.9,2451.5,0.91010376]
[1769919574088,4.11563891,2453.0,2451.7,0.91010376]
[1769919574089,0.00463891,2453.0,2451.7,0.91010376]
[1769919577190,0.00463891,2453.0,2451.8,0.9105614]
[1769919579392,4.87137529,2453.4,2451.9,0.91193458]
[1769919579690,4.87137529,2453.8,2452.2,0.90961513]
[1769919579891,4.87137529,2453.8,2452.4,0.90961513]
[1769919580291,4.87137529,2453.9,2452.4,0.90961513]
[1769919580488,4.8754217,2453.9,2452.4,0.90961513]
[1769919582486,0.00404641,2453.9,2452.4,0.90961513]
[1769919584093,5.07537529,2453.7,2452.4,0.90961513]
[1769919585189,36.50770199,2453.6,2452.4,0.90961513]
[1769919585394,36.50770199,2453.8,2452.4,0.90961513]
[1769919585693,36.5117484,2453.9,2452.4,0.90961513]
[1769919586690,0.00404641,2453.9,2452.4,3.32671631]
[1769919586891,0.00404641,2453.9,2452.6,0.9107924]
[1769919587091,0.00404641,2453.9,2452.8,0.9107924]
[1769919588800,36.50770199,2453.5,2452.5,0.91072062]
[1769919588986,36.71172199,2453.6,2452.5,0.91072062]
[1769919589495,36.50770199,2453.6,2452.5,0.91072062]
[1769919589997,36.50770199,2453.5,2452.5,0.91072062]
[1769919590195,36.50770199,2453.6,2452.5,0.91072062]
[1769919590393,36.50770199,2453.5,2452.5,0.91072062]
[1769919590592,36.50770199,2453.6,2452.5,0.91072062]
[1769919590996,36.50770199,2453.7,2452.5,0.91072062]
[1769919591898,36.50770199,2453.8,2452.5,0.91072062]
[1769919595906,36.50770199,2453.7,2452.5,0.91072062]
[1769919598303,36.50770199,2453.6,2452.5,0.91072062]
[1769919598603,36.50770199,2453.7,2452.5,0.91072062]
[1769919598904,36.50770199,2453.8,2452.5,0.91072062]
[1769919599605,36.5117484,2453.9,2452.6,0.91133689]
[1769919601003,36.50770199,2454.3,2453.0,0.911499]
[1769919601198,36.50770199,2454.5,2453.2,0.911499]
[1769919601405,36.50770199,2454.3,2453.2,0.911499]
[1769919601604,36.50770199,2454.1,2453.2,0.911499]
[1769919602104,36.51125538,2454.1,2453.2,0.91654213]
[1769919603608,0.00355339,2454.1,2453.2,0.91654213]
[1769919608015,36.51125538,2454.1,2453.2,0.91654213]
[1769919608513,36.50770199,2454.0,2453.2,0.91654213]
[1769919609503,36.51125538,2454.1,2453.2,0.91654213]
[1769919611023,45.99370199,2454.0,2453.2,0.00504313]
[1769919611313,45.99370199,2454.0,2453.0,0.91541304]
[1769919611314,36.50770199,2453.8,2453.0,0.91541304]
[1769919612210,36.50770199,2453.8,2453.0,0.92030355]
[1769919615109,36.50770199,2453.7,2453.0,0.92030355]
[1769919615310,36.50770199,2453.6,2452.8,0.91633671]
[1769919615514,46.04970199,2453.5,2452.2,0.91633671]
[1769919615815,36.50770199,2453.4,2452.2,0.91633671]
[1769919616315,36.50770199,2453.4,2452.2,0.9194723]
[1769919618916,36.50770199,2453.3,2452.2,0.9194723]
[1769919619416,36.50770199,2452.9,2452.2,0.00313559]
[1769919619619,9.576,2452.8,2452.0,0.91978735]
[1769919619914,46.08370199,2452.8,2452.0,0.91978735]
[1769919620412,36.50770199,2453.0,2452.0,0.91978735]
[1769919620611,36.50770199,2453.0,2452.0,0.92289893]
[1769919621410,14.45937529,2453.1,2452.0,0.92289893]
[1769919621411,46.09570199,2453.1,2452.0,0.92289893]
[1769919622617,9.588,2453.1,2452.0,0.92289893]
[1769919622915,46.09570199,2453.1,2452.0,0.92289893]
[1769919623317,9.588,2453.1,2452.0,0.92289893]
[1769919623817,40.58670199,2453.3,2452.0,0.92289893]
[1769919624018,36.50770199,2453.1,2452.0,0.92289893]
[1769919626320,36.50770199,2453.2,2452.0,0.92289893]
[1769919629121,36.50770199,2453.1,2452.0,0.92289893]
[1769919629320,36.50770199,2453.0,2452.0,0.92289893]
[1769919630120,36.50770199,2453.1,2452.0,0.92289893]
[1769919631729,36.50770199,2453.7,2452.1,0.92118502]
[1769919632921,46.36870199,2453.8,2452.1,0.92118502]
[1769919633124,9.657,2453.8,2452.3,0.92058969]
[1769919633621,46.16470199,2453.8,2452.3,0.92058969]
[1769919635427,36.50770199,2453.7,2452.3,0.92058969]
[1769919635826,36.50770199,2453.6,2452.3,0.92058969]
[1769919636125,36.50770199,2453.3,2452.0,5.00353274]
[1769919636323,36.50770199,2453.1,2452.1,0.92042116]
[1769919637222,36.50770199,2453.0,2452.1,0.92042116]
[1769919638130,36.50770199,2453.1,2452.1,0.92042116]
[1769919638330,36.50770199,2453.0,2452.1,0.92042116]
[1769919638828,36.50770199,2453.2,2452.1,0.92042116]
[1769919639228,36.50770199,2453.1,2452.1,0.92042116]
[1769919639633,36.50770199,2453.0,2452.1,0.92042116]
[1769919639933,46.22070199,2452.9,2452.1,0.92042116]
[1769919641836,36.50770199,2452.8,2452.1,0.92042116]
[1769919643743,36.50770199,2452.7,2452.0,0.00311158]
[1769919644146,36.50770199,2452.7,2451.8,0.92134784]
[1769919644339,36.50770199,2452.6,2451.8,0.92134784]
[1769919645038,36.50770199,2452.6,2451.8,0.92624785]
[1769919646343,9.805,2452.5,2451.8,0.92624785]
[1769919646545,36.50770199,2452.3,2451.2,0.92105398]
[1769919646843,10.00911,2452.5,2451.2,0.92105398]
[1769919646844,35.58664801,2452.1,2451.2,0.92105398]
[1769919647035,4.87137529,2452.4,2451.2,0.92105398]
[1769919647341,14.68437529,2452.5,2451.2,0.92105398]
[1769919647543,14.68852077,2452.5,2451.2,0.92568913]
[1769919648146,9.81714548,2452.5,2451.3,0.46052699]
[1769919648348,0.00414548,2452.5,2451.5,0.46186683]
[1769919648943,6.787,2452.9,2451.7,0.46186683]
[1769919649348,4.87137529,2453.1,2451.8,0.46186683]
[1769919650045,1.69565344,2452.9,2451.8,0.46186683]
[1769919652742,6.56702873,2452.9,2451.8,0.46186683]
[1769919654945,1.69565344,2452.6,2451.8,0.46186683]
[1769919657145,6.56702873,2452.6,2451.5,0.45771717]
[1769919657847,1.69565344,2452.3,2451.5,0.45771717]
[1769919659042,6.56702873,2452.3,2451.5,0.45771717]
[1769919659242,1.69565344,2452.0,2451.3,0.45774041]
[1769919659442,1.69565344,2452.2,2451.3,0.45774041]
[1769919663855,4.87137529,2452.3,2451.3,0.45774041]
[1769919664055,12.56537529,2452.4,2451.3,0.45774041]
[1769919665651,4.87137529,2452.3,2451.3,0.45774041]
[1769919665848,4.87137529,2452.2,2451.3,0.45774041]
[1769919667953,4.87137529,2452.0,2451.2,0.46312631]
[1769919668358,4.87137529,2452.1,2451.2,0.46312631]
[1769919670462,4.87137529,2452.0,2451.2,0.00463515]
[1769919672254,4.87137529,2451.9,2451.2,0.00463515]
[1769919672964,4.87137529,2451.7,2450.3,0.45902113]
[1769919673358,4.87137529,2451.8,2450.3,0.45902113]
[1769919673553,4.87137529,2451.7,2450.3,0.45902113]
[1769919673758,4.87137529,2451.6,2450.3,0.462507]
[1769919674759,8.50437529,2451.6,2450.3,0.462507]
[1769919674964,4.87137529,2451.5,2450.3,0.462507]
[1769919676262,4.082,2451.7,2450.3,0.462507]
[1769919676565,8.95337529,2451.7,2450.3,0.462507]
[1769919676957,36.53517222,2451.6,2450.3,0.462507]
[1769919679964,36.53517222,2451.5,2450.3,0.462507]
[1769919681659,36.53517222,2451.4,2450.3,0.462507]
[1769919682659,4.082,2451.7,2450.3,0.462507]
[1769919682660,36.53517222,2451.6,2450.3,0.462507]
[1769919682860,40.61717222,2451.7,2450.3,0.462507]
[1769919683365,36.53517222,2451.6,2450.3,0.462507]
[1769919683565,36.53517222,2451.9,2450.3,0.462507]
[1769919684364,36.53517222,2451.9,2450.4,0.45626694]
[1769919685561,36.53517222,2451.9,2450.4,0.87634559]
[1769919685865,36.53517222,2451.9,2450.5,0.45626694]
[1769919686266,36.53517222,2451.8,2450.5,0.45626694]
[1769919688168,36.53517222,2451.7,2450.5,0.45626694]
[1769919689266,36.53517222,2451.5,2450.5,0.45626694]
[1769919689464,36.53517222,2451.4,2450.5,0.45626694]
[1769919689667,36.53517222,2451.5,2450.5,0.45626694]
[1769919690465,36.53517222,2451.4,2450.5,0.45626694]
[1769919692672,36.53517222,2451.5,2450.5,0.45626694]
[1769919692861,36.53517222,2451.7,2450.7,0.45341825]
[1769919695372,36.53517222,2451.6,2450.7,0.45341825]
[1769919695764,36.53517222,2451.7,2450.7,0.45341825]
[1769919698877,36.53517222,2451.5,2450.7,0.45341825]
[1769919700973,36.53517222,2451.3,2450.4,0.65653796]
[1769919701174,36.53979211,2451.3,2450.4,0.45226796]
[1769919701373,36.53517222,2451.2,2450.4,0.45226796]
[1769919707372,36.53979211,2451.3,2450.4,0.45226796]
[1769919709284,0.00372223,2451.3,2450.6,0.45146885]
[1769919712589,4.87137529,2451.2,2450.3,0.45538743]
[1769919713286,10.12309752,2451.3,2450.3,0.45538743]
[1769919720582,4.87509752,2451.3,2450.3,0.00348587]
[1769919720787,4.87137529,2451.1,2450.3,0.00348587]
[1769919721283,4.87137529,2451.0,2449.9,0.45343065]
[1769919721789,4.87137529,2450.9,2449.9,0.45343065]
[1769919722393,4.87137529,2450.9,2449.9,0.45719463]
[1769919723886,4.87137529,2451.0,2449.9,0.45719463]
[1769919724088,4.829,2451.1,2449.9,0.45719463]
[1769919724793,4.87137529,2451.2,2449.9,0.45719463]
[1769919724992,0.00372223,2451.3,2450.1,0.45285926]
[1769919725393,0.00372223,2451.3,2450.2,0.45285926]
[1769919726583,0.00372223,2451.3,2450.3,0.45299692]
[1769919728990,4.87509752,2451.3,2450.3,0.45299692]
[1769919729297,4.87137529,2451.2,2450.3,0.45299692]
[1769919729496,4.87137529,2451.1,2450.0,0.45048756]
[1769919735105,4.87137529,2451.0,2450.0,0.45048756]
[1769919735400,0.00372223,2451.3,2449.9,0.00376398]
[1769919735401,4.87137529,2450.9,2449.9,0.00376398]
[1769919735707,4.87137529,2450.8,2449.9,0.00376398]
[1769919737804,4.87137529,2450.7,2449.9,0.00376398]
[1769919739208,4.87137529,2450.8,2449.9,0.00376398]
[1769919739407,4.87137529,2450.7,2449.9,0.00376398]
[1769919740008,4.87137529,2450.7,2449.9,0.45441882]
[1769919741415,4.87137529,2450.9,2449.9,0.45441882]
[1769919741608,4.87137529,2451.1,2449.9,0.45441882]
[1769919745814,4.87137529,2451.0,2449.9,0.45441882]
[1769919749215,4.87137529,2450.8,2449.9,0.00376398]
[1769919749419,4.87137529,2450.8,2449.9,0.45386949]
[1769919749617,6.13438383,2451.0,2449.9,0.45386949]
[1769919749818,0.20423,2451.0,2449.9,0.45386949]
[1769919750015,6.13438383,2451.0,2449.9,0.45386949]
[1769919751221,0.20423,2451.0,2449.9,0.45386949]
[1769919753622,1.69888416,2450.9,2449.9,0.45386949]
[1769919755027,5.93015383,2451.1,2449.9,0.45386949]
[1769919755227,1.69888416,2451.2,2449.9,0.45386949]
[1769919757229,1.69888416,2451.2,2450.0,0.45011136]
[1769919757830,1.69888416,2451.2,2450.1,0.45011136]
[1769919758624,6.18372223,2451.3,2449.9,6.20834996]
[1769919758625,1.69888416,2450.6,2449.9,6.20834996]
[1769919758823,1.69888416,2450.6,2449.9,0.00376398]
[1769919760034,1.69888416,2450.9,2449.9,0.00376398]
[1769919760837,1.69888416,2450.9,2449.9,0.22764852]
[1769919765937,7.62903799,2451.2,2449.9,0.22764852]
[1769919766138,0.00372223,2451.3,2450.2,0.22360015]
[1769919766536,0.00372223,2451.3,2450.3,0.22367622]
[1769919766930,0.00372223,2451.3,2450.3,6.4282622]
[1769919767236,0.00023636,2451.3,2450.5,0.22367622]
[1769919767633,0.00023636,2451.3,2450.6,0.22367622]
[1769919768636,1.69888416,2451.8,2450.6,0.22367622]
[1769919769242,1.69888416,2451.2,2450.6,0.22367622]
[1769919769442,1.69888416,2451.2,2450.3,0.22365707]
[1769919769639,1.70311527,2451.2,2450.3,0.22365707]
[1769919771641,0.00423111,2451.2,2450.3,0.22365707]
[1769919775149,0.20422,2451.1,2450.0,0.22540331]
[1769919777548,6.13437383,2451.1,2450.0,0.22540331]
[1769919779349,5.93015383,2451.0,2450.0,0.22540331]
[1769919783852,4.88494345,2450.8,2450.0,0.22540331]
[1769919787657,4.88494345,2450.8,2449.9,0.00376398]
[1769919787658,4.88494345,2450.7,2449.9,0.00376398]
[1769919787956,4.88494345,2450.6,2449.9,0.00376398]
[1769919789253,4.88494345,2450.6,2449.9,0.22944595]
[1769919789556,4.88494345,2450.7,2449.9,0.22944595]
[1769919789756,5.08919345,2450.8,2449.9,0.22944595]
[1769919791556,6.78822383,2450.8,2449.9,0.22944595]
[1769919798268,4.88494345,2450.7,2449.9,0.22944595]
[1769919801365,4.88494345,2450.6,2449.9,0.22944595]
[1769919804169,4.88494345,2450.5,2449.9,0.22944595]
[1769919806380,4.88494345,2450.4,2449.7,0.22594331]
[1769919807378,4.88494345,2450.4,2449.7,0.22958813]
[1769919810377,4.88494345,2450.5,2449.7,0.22958813]
[1769919810578,4.88494345,2450.4,2449.7,0.22958813]
[1769919812580,4.88494345,2450.5,2449.7,0.22958813]
[1769919813274,4.88494345,2450.7,2449.9,0.22413662]
[1769919814082,4.88494345,2450.8,2449.9,0.22413662]
[1769919814285,4.88494345,2450.9,2450.0,0.22413662]
[1769919814484,8.96894345,2451.1,2450.2,0.22429718]
[1769919814684,10.66797383,2451.1,2450.2,0.22429718]
[1769919815186,0.00423111,2451.2,2450.4,0.22429718]
[1769919815378,0.00423111,2451.2,2450.4,2.65076285]
[1769919815580,0.00423111,2451.2,2450.5,0.22429718]
[1769919815785,4.88494345,2452.0,2450.7,0.22429718]
[1769919816081,4.88494345,2452.0,2450.8,0.22429718]
[1769919816278,4.88494345,2452.1,2450.8,0.22429718]
[1769919816877,4.88797343,2452.1,2450.8,0.22429718]
[1769919817080,0.00302998,2452.1,2450.8,0.22429718]
[1769919835807,0.20716998,2452.1,2450.8,0.22429718]
[1769919839207,3.76016998,2452.1,2450.8,0.22429718]
[1769919839915,3.55602998,2452.1,2450.8,0.22429718]
[1769919842418,9.48618381,2452.1,2450.8,0.22429718]
[1769919842811,3.55602998,2452.1,2450.8,0.22429718]
[1769919843011,9.48618381,2452.1,2450.8,0.22429718]
[1769919843211,0.2042,2451.4,2450.2,2.4862771]
[1769919843414,1.90156628,2451.1,2450.2,0.22513058]
[1769919843711,2.394,2451.3,2450.2,0.22513058]
[1769919843917,2.711,2451.4,2450.2,0.22513058]
[1769919866738,0.20418,2451.6,2450.4,0.22154928]
[1769919871142,0.20418,2451.6,2450.6,0.22220911]
[1769919871740,1.69734628,2451.5,2450.4,0.22220911]
[1769919873142,7.62750011,2451.5,2450.4,0.22220911]
[1769919875547,1.69835456,2451.3,2450.4,0.22220911]
[1769919877550,7.62850839,2451.3,2450.4,0.22220911]
[1769919879543,7.62850839,2451.3,2450.2,0.22110001]
[1769919880248,0.2042,2451.4,2450.2,0.22110001]
[1769919880644,0.2042,2451.4,2450.4,0.22072878]
[1769919881150,5.93015383,2451.6,2450.4,0.22072878]
[1769919881347,11.38515383,2451.7,2450.4,0.22072878]
[1769919886451,1.69835456,2451.6,2450.4,0.22072878]
[1769919886754,1.69835456,2451.3,2450.4,0.22072878]
[1769919889157,5.93015383,2451.5,2450.0,3.63964749]
[1769919889158,1.69835456,2451.0,2450.2,0.21872387]
[1769919896259,4.084,2451.3,2450.2,0.21872387]
[1769919899055,1.69835456,2451.0,2450.2,0.21872387]
[1769919899751,4.084,2451.3,2450.2,0.21872387]
[1769919899752,5.78235456,2451.3,2450.2,0.21872387]
[1769919906063,1.69835456,2451.0,2450.0,0.21966664]
[1769919906658,7.62850839,2451.0,2450.0,0.21966664]
[1769919907260,1.69835456,2451.0,2450.0,0.21966664]
[1769919908161,7.62850839,2451.0,2450.0,0.21966664]
[1769919908561,1.69835456,2450.7,2449.8,0.2203816]
[1769919909066,1.69835456,2450.7,2449.7,0.22402642]
[1769919910763,1.69835456,2450.1,2449.5,0.22052942]
[1769919910962,1.69835456,2450.4,2449.5,0.22052942]
[1769919911763,1.69835456,2450.1,2449.2,0.22052942]
[1769919912369,1.70363772,2450.1,2449.2,0.22372963]
[1769919915267,1.70363772,2450.1,2448.6,0.22128178]
[1769919915268,1.69835456,2449.5,2448.6,0.22128178]
[1769919916365,1.69835456,2449.5,2448.6,0.22653035]
[1769919924973,1.69835456,2449.5,2448.6,0.00524857]
[1769919926576,1.69835456,2449.2,2448.4,0.22027015]
[1769919927870,1.69835456,2449.2,2448.4,0.22507651]
[1769919928479,1.69835456,2449.2,2448.0,0.22010583]
[1769919929477,1.69835456,2449.2,2448.0,0.22486375]
[1769919930072,1.69835456,2448.9,2448.0,0.22486375]
[1769919931175,1.69835456,2448.6,2448.0,0.00475792]
[1769919931478,1.69835456,2448.3,2447.6,0.22077443]
[1769919932273,1.70163111,2448.3,2447.6,0.22427116]
[1769919932573,1.70163111,2448.3,2447.6,0.00349673]
[1769919932772,1.69835456,2447.9,2446.8,0.22381093]
[1769919932973,1.69835456,2447.6,2446.8,0.22381093]
[1769919933277,1.69835456,2447.9,2446.8,0.22381093]
[1769919933875,1.69835456,2447.9,2446.8,0.22754258]
[1769919934569,0.00327655,2448.3,2446.0,2.43064196]
[1769919934570,1.69835456,2447.2,2446.0,2.43064196]
[1769919934769,0.08899214,2447.7,2446.1,1.69835456]
[1769919934969,0.08899214,2447.7,2446.4,1.69835456]
[1769919935676,0.08899214,2447.7,2446.4,1.70235227]
[1769919936578,0.08899214,2447.7,2446.5,0.15981293]
[1769919937169,1.69835456,2447.5,2446.5,0.15981293]
[1769919937375,1.78509642,2447.5,2446.5,0.15981293]
[1769919937577,0.08674186,2447.9,2446.5,0.15981293]
[1769919950487,0.09727236,2448.2,2446.5,0.15981293]
[1769919950686,0.09727236,2448.2,2446.7,0.15810453]
[1769919951484,0.09727236,2448.2,2446.8,0.15810453]
[1769919952589,0.09727236,2448.2,2446.9,0.15810453]
[1769919953090,0.09727236,2448.2,2447.0,0.15810453]
[1769919954290,0.09727236,2448.2,2447.1,0.15810453]
[1769919956785,0.09727236,2448.2,2447.2,0.15810453]
[1769919957083,0.00327655,2448.3,2447.4,0.15810453]
[1769919957287,0.00327655,2448.3,2447.6,0.15810453]
[1769919958293,0.10121042,2448.3,2447.4,4.07631565]
[1769919958587,0.10121042,2448.3,2447.3,0.15810453]
[1769919960587,0.00327655,2448.3,2447.3,0.15810453]
[1769919961384,0.00327655,2448.3,2447.3,2.59476301]
[1769919961591,0.00327655,2448.3,2447.5,0.15810453]
[1769919961787,0.00327655,2448.3,2447.7,0.15810453]
[1769919965688,0.00327655,2448.3,2447.4,2.43665848]
[1769919965689,0.10555049,2448.3,2447.5,0.15810453]
[1769919967604,0.10555049,2448.3,2447.3,0.15268206]
[1769919973811,0.10583257,2447.8,2446.8,2.5903212]
[1769919974011,0.10583257,2447.8,2446.9,0.15268206]
[1769919974504,0.31033257,2447.8,2446.9,0.15268206]
[1769919974710,0.10624389,2447.7,2446.7,0.15268206]
[1769919974909,0.10624389,2447.5,2446.7,0.15268206]
[1769919977708,4.089,2447.7,2446.7,0.15268206]
[1769919978210,4.089,2447.7,2446.9,0.15268206]
[1769919978410,0.10562089,2448.2,2446.9,0.15268206]
[1769919978612,2.398,2448.2,2447.1,0.15268206]
[1769919981116,0.10473229,2448.1,2447.1,0.15268206]
[1769919982912,4.29673655,2448.3,2447.1,0.15268206]
[1769919983909,4.09227655,2448.3,2447.2,0.15268206]
[1769919984113,4.09227655,2448.3,2447.3,0.15268206]
[1769919984114,0.00327655,2448.3,2447.3,0.15268206]
[1769919984313,0.00327655,2448.3,2447.5,0.15268206]
[1769919984509,2.398,2448.8,2447.5,0.15268206]
[1769919984717,2.398,2448.8,2447.7,0.15268206]
[1769919985216,2.50611057,2448.8,2447.7,0.15268206]
[1769919985608,2.51013377,2448.8,2447.7,0.15268206]
[1769919988320,2.4020232,2448.8,2447.7,0.15268206]
[1769919988819,2.4020232,2448.8,2447.8,0.15268206]
[1769919989618,0.0040232,2448.8,2447.8,0.15268206]
[1769919990416,0.0040232,2448.8,2447.9,0.15268206]
[1769919991620,0.0040232,2448.8,2448.0,0.15268206]
[1769919994325,0.11193045,2448.8,2448.0,0.15268206]
[1769920000831,0.0040232,2448.8,2448.0,0.15268206]
[1769920001523,2.398,2449.2,2448.0,0.15268206]
[1769920002532,2.40250612,2449.2,2448.0,0.15268206]
[1769920003231,0.00450612,2449.2,2448.0,2.58444682]
[1769920003435,0.00450612,2449.2,2448.1,2.58732949]
[1769920003637,0.00450612,2449.2,2448.2,0.15556473]
[1769920003836,0.00450612,2449.2,2448.2,0.15910108]
[1769920004728,1e-08,2449.2,2448.3,2.58732949]
[1769920004935,1e-08,2449.2,2448.4,0.15556473]
[1769920007235,1e-08,2449.2,2448.5,0.15556473]
[1769920008638,0.11224039,2449.2,2448.5,0.15556473]
[1769920008842,0.11224039,2449.2,2448.3,0.15556473]
[1769920018046,2.50924039,2449.2,2448.2,0.15910108]
[1769920018249,0.10849248,2449.1,2448.2,0.15910108]
[1769920022251,2.39700001,2449.2,2448.2,0.15910108]
[1769920023251,1e-08,2449.2,2448.4,0.15556473]
[1769920023447,1e-08,2449.2,2448.5,0.15556473]
[1769920026854,1e-08,2449.2,2448.3,0.15556473]
[1769920027552,1.81228277,2449.2,2448.3,0.15556473]
[1769920030552,0.11181641,2449.1,2448.3,0.15556473]
[1769920040659,1.70138231,2449.2,2448.3,0.15556473]
[1769920040860,1.81153739,2449.2,2448.3,0.15556473]
[1769920042661,0.10930204,2449.1,2448.3,0.15556473]
[1769920047363,1.70138231,2449.2,2448.2,0.15316872]
[1769920047364,0.11041385,2448.8,2448.2,0.15316872]
[1769920047664,0.11041385,2449.1,2448.2,0.15316872]
[1769920050061,1.7013823,2448.9,2448.2,0.15316872]
[1769920050267,0.11093017,2448.8,2448.2,0.15316872]
[1769920050468,0.11093017,2448.8,2448.2,0.00353635]
[1769920051065,1.7013823,2448.9,2448.2,0.15316872]
[1769920054670,1.81037306,2448.9,2448.2,0.15316872]
[1769920059376,0.10819518,2448.5,2447.8,2.60458001]
[1769920059571,0.10819518,2448.5,2447.8,0.16101261]
[1769920060374,0.10819518,2448.5,2447.8,0.1656523]
[1769920063376,0.10819518,2448.5,2447.8,0.00463969]
[1769920063680,0.10819518,2448.5,2447.6,0.15395419]
[1769920064482,0.10819518,2448.5,2447.6,0.15694328]
[1769920065189,4.088,2448.6,2447.6,0.15694328]
[1769920065379,4.19640767,2448.6,2447.6,0.15694328]
[1769920065574,4.088,2448.6,2447.6,0.15694328]
[1769920065779,0.10840767,2448.5,2447.6,0.15694328]
[1769920082593,2.398,2448.6,2447.6,0.15694328]
[1769920082789,0.10741881,2448.5,2447.6,0.15694328]
[1769920085092,9.02916506,2449.2,2447.8,0.15395419]
[1769920085297,0.10733549,2449.1,2448.0,0.15395419]
[1769920095405,0.10690819,2448.8,2447.8,0.15699599]
[1769920096310,0.10690819,2448.7,2447.6,0.15998508]
[1769920105815,0.10695161,2448.6,2447.6,0.15998508]
[1769920110018,0.20442,2448.7,2447.6,0.15998508]
[1769920110425,0.10736269,2448.5,2447.6,0.15998508]
[1769920111920,1.70233166,2448.6,2447.6,0.15998508]
[1769920112122,1.80969435,2448.6,2447.6,0.15998508]
[1769920112826,0.10646956,2448.5,2447.6,0.15998508]
[1769920118328,0.15240528,2448.2,2447.1,2.4435674]
[1769920118531,0.15240528,2448.0,2446.9,2.4435674]
[1769920119433,0.15240528,2448.0,2446.9,2.44850404]
[1769920120332,0.15240528,2448.0,2447.0,0.1521454]
[1769920121529,1.70306125,2447.9,2447.0,0.1521454]
[1769920121728,1.85546653,2447.9,2447.0,0.1521454]
[1769920121928,0.15240528,2447.8,2447.0,0.1521454]
[1769920133744,3.98847,2448.1,2447.0,0.1521454]
[1769920133745,1.70306125,2448.0,2447.0,0.1521454]
[1769920133947,1.84825332,2448.0,2447.0,0.1521454]
[1769920138351,0.14519207,2447.9,2447.0,0.1521454]
[1769920145058,1.70306125,2448.0,2447.0,0.1521454]
[1769920145261,7.39406125,2448.0,2447.0,0.1521454]
[1769920145655,0.14519207,2447.2,2446.5,0.15536936]
[1769920145855,0.34972207,2447.4,2446.5,0.15536936]
[1769920146062,0.14519207,2447.3,2446.5,0.15536936]
[1769920146756,0.14519207,2447.3,2446.5,0.15838171]
[1769920146757,0.15038709,2447.3,2446.5,0.15838171]
[1769920150361,0.15562687,2447.2,2446.5,0.15838171]
[1769920152159,0.15562687,2446.9,2446.2,0.15389232]
[1769920152459,0.00519502,2447.3,2446.2,0.15389232]
[1769920152863,0.16082189,2447.3,2446.2,0.15389232]
[1769920153066,0.15562687,2447.2,2446.2,0.15389232]
[1769920153263,0.15562687,2447.2,2446.2,0.15688262]
[1769920163667,0.15562687,2446.9,2446.2,0.15688262]
[1769920165873,0.36017687,2447.2,2446.2,0.15688262]
[1769920166373,0.15562687,2447.1,2446.2,0.15688262]
[1769920166867,0.00519502,2447.3,2446.2,0.15688262]
[1769920167068,0.00519502,2447.3,2446.2,1.85994387]
[1769920167268,0.00519502,2447.3,2446.4,0.15389232]